bitfinex/quotes_BTCUSD_20250123
["timestamp","ask_amount","ask_price","bid_price","bid_amount"]
[1737671176738,0.0011423,104080.0,104070.0,0.40782729]
[1737671177817,0.0001423,104110.0,104100.0,0.438852]
[1737671178018,0.00063593,104110.0,104100.0,0.55919929]
[1737671178461,0.00063593,104110.0,104100.0,0.56554318]
[1737671178671,0.00063593,104110.0,104100.0,0.40749929]
[1737671178839,0.00063593,104110.0,104100.0,0.45749929]
[1737671179244,0.00163593,104110.0,104100.0,0.45849929]
[1737671179794,0.00163593,104110.0,104100.0,0.40849929]
[1737671180373,0.00163593,104110.0,104100.0,0.45849929]
[1737671180557,0.00263593,104110.0,104100.0,0.46649929]
[1737671180767,5.44e-05,104160.0,104150.0,0.110406]
[1737671180970,0.00020254,104160.0,104150.0,0.310406]
[1737671182151,0.00020254,104160.0,104150.0,0.260406]
[1737671182387,0.00420254,104160.0,104150.0,0.40775329]
[1737671182599,0.00720254,104160.0,104150.0,0.40775329]
[1737671182823,0.00720254,104160.0,104150.0,0.35775329]
[1737671183028,0.00720254,104160.0,104150.0,0.40775329]
[1737671183660,0.00020254,104160.0,104150.0,0.40775329]
[1737671184066,0.00120254,104160.0,104150.0,0.40775329]
[1737671184476,0.00120254,104160.0,104140.0,0.014391]
[1737671184477,0.096015,104150.0,104140.0,0.014391]
[1737671184697,0.48125654,104160.0,104140.0,0.164391]
[1737671184892,0.48125654,104160.0,104150.0,0.014391]
[1737671184893,0.29122954,104160.0,104150.0,0.014391]
[1737671185417,0.09921454,104160.0,104150.0,0.014391]
[1737671185622,0.09721454,104160.0,104150.0,0.014391]
[1737671185845,0.096015,104150.0,104130.0,0.310419]
[1737671186018,0.096015,104150.0,104140.0,0.003]
[1737671186458,0.288048,104150.0,104130.0,0.164391]
[1737671186633,0.096024,104140.0,104130.0,0.15]
[1737671187010,0.096024,104140.0,104130.0,0.159]
[1737671187332,0.096033,104130.0,104120.0,0.014391]
[1737671187741,1.788087,104140.0,104130.0,0.005]
[1737671187887,1.788087,104140.0,104120.0,0.164391]
[1737671188091,1.980149,104140.0,104120.0,0.164391]
[1737671188293,0.482149,104140.0,104120.0,0.164391]
[1737671188695,1.982149,104140.0,104120.0,0.164391]
[1737671188882,0.096033,104130.0,104120.0,0.15]
[1737671189087,0.096033,104130.0,104120.0,0.164391]
[1737671189404,0.096033,104130.0,104110.0,0.146045]
[1737671189405,0.288101,104130.0,104110.0,0.310442]
[1737671189634,0.288101,104130.0,104110.0,0.214391]
[1737671189832,0.288101,104130.0,104120.0,0.001]
[1737671190187,0.288101,104130.0,104120.0,0.01]
[1737671190389,0.288101,104130.0,104120.0,0.001]
[1737671190638,0.48279558,104130.0,104120.0,0.001]
[1737671190866,0.39761538,104130.0,104120.0,0.001]
[1737671191161,0.096054,104110.0,104090.0,0.014391]
[1737671191337,0.096063,104100.0,104080.0,0.288221]
[1737671191553,0.288187,104100.0,104090.0,0.014391]
[1737671191750,0.153739,104080.0,104070.0,0.00029883]
[1737671191956,0.096098,104060.0,104050.0,0.014391]
[1737671192358,0.096098,104060.0,104050.0,0.01488463]
[1737671192760,0.096098,104060.0,104050.0,0.00049363]
[1737671193564,0.097098,104060.0,104050.0,0.00949363]
[1737671193771,0.19444529,104060.0,104050.0,0.00949363]
[1737671194499,0.25671429,104060.0,104050.0,0.00049363]
[1737671194736,0.3012947,104060.0,104050.0,0.01649363]
[1737671194938,0.34637046,104060.0,104050.0,0.00749363]
[1737671195147,1.79123005,104060.0,104050.0,0.00049363]
[1737671195354,0.10856199,104060.0,104050.0,0.00079246]
[1737671195558,0.20590928,104060.0,104050.0,0.00079246]
[1737671195770,0.10656199,104060.0,104050.0,0.01518346]
[1737671196178,0.11156199,104060.0,104050.0,0.01518346]
[1737671196384,0.11256199,104060.0,104050.0,0.01518346]
[1737671196999,0.11956199,104060.0,104050.0,0.16618346]
[1737671197234,0.11956199,104060.0,104050.0,0.15179246]
[1737671197828,0.11456199,104060.0,104050.0,0.15179246]
[1737671198055,0.11456199,104060.0,104050.0,0.16618346]
[1737671198256,0.11456199,104060.0,104050.0,0.15179246]
[1737671198465,0.11856199,104060.0,104050.0,0.15179246]
[1737671198984,0.11856199,104060.0,104050.0,0.16618346]
[1737671199359,0.11856199,104060.0,104050.0,0.01618346]
[1737671200190,0.11856199,104060.0,104050.0,0.00179246]
[1737671200571,0.11856199,104060.0,104050.0,0.01618346]
[1737671200766,0.11856199,104060.0,104050.0,0.00179246]
[1737671202526,0.11856199,104060.0,104050.0,0.01618346]
[1737671202733,0.012,104060.0,104050.0,0.40963775]
[1737671202935,0.108098,104060.0,104050.0,0.15179246]
[1737671203138,0.20544529,104060.0,104050.0,0.18179246]
[1737671203345,0.20544529,104060.0,104050.0,0.15179246]
[1737671205103,0.26310529,104060.0,104050.0,0.15179246]
[1737671205304,0.20544529,104060.0,104050.0,0.15179246]
[1737671205828,0.01906646,104090.0,104080.0,0.014391]
[1737671206063,0.01003215,104110.0,104100.0,0.014391]
[1737671206268,0.10691023,104120.0,104110.0,0.014391]
[1737671206472,0.01086623,104120.0,104110.0,0.164391]
[1737671206877,0.288107,104130.0,104120.0,0.164391]
[1737671207488,0.28825506,104130.0,104120.0,0.164391]
[1737671208284,0.29725506,104130.0,104120.0,0.165391]
[1737671208487,0.29725506,104130.0,104120.0,0.151]
[1737671208904,0.29825506,104130.0,104120.0,0.151]
[1737671209100,0.46377479,104130.0,104120.0,0.001]
[1737671209304,0.56112208,104130.0,104120.0,0.001]
[1737671209687,0.46377479,104130.0,104120.0,0.001]
[1737671210640,0.46938379,104130.0,104120.0,0.001]
[1737671213764,0.54758379,104130.0,104120.0,0.001]
[1737671214541,0.09607,104090.0,104080.0,0.014391]
[1737671214755,0.096071,104090.0,104080.0,0.15]
[1737671215179,0.096071,104090.0,104080.0,0.164391]
[1737671215778,0.096071,104090.0,104080.0,0.176391]
[1737671216021,0.384267,104100.0,104080.0,0.17688463]
[1737671216447,0.480335,104100.0,104080.0,0.17688463]
[1737671216644,0.288165,104110.0,104100.0,0.15]
[1737671217883,0.09607,104090.0,104080.0,0.01688463]
[1737671218211,0.09607,104090.0,104080.0,0.16488463]
[1737671220502,0.19441729,104090.0,104080.0,0.00949363]
[1737671220706,0.19441729,104090.0,104080.0,0.01249363]
[1737671221110,0.19441729,104090.0,104080.0,0.01245363]
[1737671221519,0.19441729,104090.0,104080.0,0.00945363]
[1737671221671,0.19341729,104090.0,104080.0,0.00045363]
[1737671221870,0.19441729,104090.0,104080.0,0.00045363]
[1737671222333,0.001,104090.0,104080.0,0.40827092]
[1737671222713,0.001,104090.0,104080.0,0.35827092]
[1737671223101,0.001,104090.0,104080.0,0.40827092]
[1737671223635,0.49082143,104120.0,104100.0,0.096059]
[1737671223841,0.58687043,104120.0,104100.0,0.11045]
[1737671224040,0.096052,104110.0,104100.0,0.014391]
[1737671224246,0.096061,104100.0,104090.0,0.15]
[1737671224451,0.288174,104110.0,104090.0,0.438209]
[1737671224654,0.09607,104090.0,104080.0,0.00845363]
[1737671225273,0.15373,104090.0,104080.0,0.00045363]
[1737671225805,0.15333,104090.0,104080.0,0.00045363]
[1737671226911,0.15333,104090.0,104080.0,1.15345363]
[1737671227621,0.15433,104090.0,104080.0,1.16245363]
[1737671227829,0.001,104090.0,104080.0,1.17684463]
[1737671228019,0.001,104090.0,104080.0,1.27292363]
[1737671228222,0.09707,104090.0,104080.0,1.17684463]
[1737671228678,0.09707,104090.0,104080.0,1.16245363]
[1737671229078,0.10762614,104090.0,104080.0,1.16245363]
[1737671232323,0.10762614,104090.0,104080.0,1.16275246]
[1737671232559,0.10776844,104090.0,104080.0,1.16275246]
[1737671232754,0.17103744,104090.0,104080.0,1.01275246]
[1737671232883,0.36573202,104090.0,104080.0,1.01275246]
[1737671233089,0.43532302,104090.0,104080.0,1.01275246]
[1737671233316,0.48853202,104090.0,104080.0,1.01275246]
[1737671233687,0.48853202,104090.0,104080.0,1.00975246]
[1737671233891,0.39118473,104090.0,104080.0,1.00075246]
[1737671234097,0.38757573,104090.0,104080.0,0.9812086]
[1737671234301,0.38757573,104090.0,104080.0,0.86784369]
[1737671234302,0.39657573,104090.0,104080.0,0.86784369]
[1737671234437,0.39357573,104090.0,104080.0,0.86684369]
[1737671234642,0.39757573,104090.0,104080.0,0.85750369]
[1737671234847,0.44417744,104090.0,104080.0,0.85850369]
[1737671235466,0.56827744,104090.0,104080.0,0.31794118]
[1737671235674,0.56827744,104090.0,104080.0,0.20538213]
[1737671235865,0.56827744,104090.0,104080.0,0.15708213]
[1737671236060,0.56827744,104090.0,104080.0,0.03941286]
[1737671236306,0.58719281,104090.0,104080.0,0.03941286]
[1737671236788,0.58719281,104090.0,104080.0,0.00839494]
[1737671236993,0.257139,104080.0,104070.0,0.00029883]
[1737671237229,0.159367,104060.0,104050.0,0.00029883]
[1737671237553,0.25671429,104060.0,104050.0,0.00044698]
[1737671238183,1.75671429,104060.0,104050.0,0.00044698]
[1737671239371,1.75110529,104060.0,104050.0,0.00044698]
[1737671239745,0.096126,104030.0,104020.0,0.00029904]
[1737671239956,0.19347329,104030.0,104020.0,0.00029904]
[1737671241433,0.19827975,104030.0,104020.0,0.00029904]
[1737671241596,0.20127975,104030.0,104020.0,0.00029904]
[1737671242175,0.26454875,104030.0,104020.0,0.00029904]
[1737671242616,1.76454875,104030.0,104020.0,0.00229904]
[1737671243000,0.26993,104020.0,103970.0,0.192348]
[1737671243215,0.096163,103990.0,103970.0,0.288522]
[1737671243410,0.288491,103990.0,103960.0,0.38503504]
[1737671243796,0.5289099,103990.0,103970.0,0.096181]
[1737671244002,0.096172,103980.0,103960.0,0.57856533]
[1737671244204,0.48209729,103970.0,103940.0,0.00029925]
[1737671244384,0.0962,103950.0,103940.0,0.00079515]
[1737671244592,0.28972129,103970.0,103940.0,0.28941415]
[1737671244740,0.288575,103960.0,103950.0,0.15]
[1737671244949,0.38475,103970.0,103950.0,0.246198]
[1737671244950,0.096186,103970.0,103950.0,0.246198]
[1737671245146,0.096186,103970.0,103950.0,0.2462]
[1737671245375,0.096186,103970.0,103950.0,0.4386]
[1737671245576,0.28855,103970.0,103950.0,0.4386]
[1737671245781,0.01023425,103970.0,103950.0,0.630989]
[1737671245979,0.09619,103960.0,103950.0,0.15]
[1737671246181,0.28971029,103970.0,103950.0,0.15]
[1737671246386,0.09619,103960.0,103950.0,0.15]
[1737671246731,0.38591929,103960.0,103940.0,0.00079515]
[1737671247110,0.38591929,103960.0,103950.0,0.002]
[1737671247313,0.48212229,103960.0,103940.0,0.00079515]
[1737671247548,0.0962,103950.0,103940.0,0.00079515]
[1737671247763,2.17551929,103960.0,103940.0,0.00079515]
[1737671247955,0.0962,103950.0,103940.0,0.00079515]
[1737671248158,0.0962,103950.0,103940.0,0.00279515]
[1737671248370,0.19354729,103950.0,103940.0,0.00279515]
[1737671248517,0.002,103960.0,103950.0,0.1462]
[1737671248721,0.002,103960.0,103950.0,0.15]
[1737671248956,0.002,103960.0,103950.0,0.39354729]
[1737671249156,0.002,103960.0,103950.0,0.003]
[1737671249157,0.09619,103960.0,103950.0,0.003]
[1737671250074,0.19453729,103960.0,103950.0,0.005]
[1737671250316,0.09834729,103960.0,103940.0,0.00079515]
[1737671250497,0.19354729,103950.0,103940.0,0.00079515]
[1737671252112,0.481988,103960.0,103940.0,0.00079515]
[1737671252324,0.0962,103950.0,103940.0,0.00079515]
[1737671252720,0.19354729,103950.0,103940.0,0.00179515]
[1737671253138,0.19354729,103950.0,103940.0,0.00079515]
[1737671253363,0.19354729,103950.0,103940.0,0.00279515]
[1737671253570,0.19354729,103950.0,103940.0,0.00479515]
[1737671254022,0.19454729,103950.0,103940.0,0.00679515]
[1737671254232,0.19454729,103950.0,103940.0,0.00079515]
[1737671255685,0.19454729,103950.0,103940.0,0.00379515]
[1737671256110,0.19584654,103950.0,103940.0,0.00579515]
[1737671257401,0.21884654,103950.0,103940.0,0.00579515]
[1737671257597,1.71884654,103950.0,103940.0,0.00279515]
[1737671257821,1.71684654,103950.0,103940.0,0.00079515]
[1737671258068,0.19384654,103950.0,103940.0,0.00079515]
[1737671258634,1.73684654,103950.0,103940.0,0.00079515]
[1737671258998,1.73784654,103950.0,103940.0,0.00079515]
[1737671259203,1.73784654,103950.0,103940.0,0.00179515]
[1737671259427,1.73784654,103950.0,103940.0,0.00079515]
[1737671259641,1.71684654,103950.0,103940.0,0.00079515]
[1737671259793,1.85047213,103950.0,103940.0,0.00079515]
[1737671260228,1.81278484,103950.0,103940.0,0.00079515]
[1737671260436,1.81278484,103950.0,103920.0,0.00029883]
[1737671260437,0.196878,103930.0,103920.0,0.00029883]
[1737671260638,0.29422529,103930.0,103920.0,0.00029883]
[1737671261923,0.27422529,103930.0,103920.0,0.00029883]
[1737671262124,0.29422529,103930.0,103920.0,0.00029883]
[1737671262718,0.25122529,103930.0,103920.0,0.00029883]
[1737671262920,0.25222529,103930.0,103920.0,0.00129883]
[1737671263448,0.27522529,103930.0,103920.0,0.00129883]
[1737671264414,0.14134729,103930.0,103920.0,0.00129883]
[1737671264622,0.00907036,103950.0,103930.0,0.07]
[1737671264823,0.00907036,103950.0,103940.0,0.266209]
[1737671265025,0.00907036,103950.0,103940.0,0.17]
[1737671265421,0.09699206,103950.0,103940.0,0.17]
[1737671265634,0.00079206,103950.0,103940.0,0.266209]
[1737671266300,0.00079206,103950.0,103940.0,0.316209]
[1737671266565,0.00079206,103950.0,103940.0,0.41355629]
[1737671266794,0.096155,104000.0,103990.0,0.15]
[1737671267469,0.656406,104010.0,103990.0,0.15]
[1737671267673,0.00843442,104000.0,103990.0,0.36350929]
[1737671267880,0.096138,104020.0,104010.0,0.17]
[1737671268104,0.096135,104020.0,104010.0,0.17]
[1737671268313,0.18164923,104030.0,104010.0,0.266141]
[1737671268528,0.08551623,104030.0,104010.0,0.458429]
[1737671268731,1.5,104020.0,104010.0,0.458429]
[1737671269193,1.5,104020.0,104010.0,0.508429]
[1737671269904,1.5,104020.0,104010.0,0.465429]
[1737671270121,0.096135,104020.0,104010.0,0.003]
[1737671270341,0.19448229,104020.0,104010.0,0.004]
[1737671270520,0.38676629,104020.0,104010.0,0.008]
[1737671271723,0.38676629,104020.0,104010.0,0.004]
[1737671271923,0.38576629,104020.0,104000.0,0.17]
[1737671272125,0.38576629,104020.0,104010.0,0.003]
[1737671272284,0.38676629,104020.0,104010.0,0.008]
[1737671272488,0.38676629,104020.0,104010.0,0.005]
[1737671272687,0.38756629,104020.0,104010.0,0.007]
[1737671273523,0.38756629,104020.0,103990.0,0.00014818]
[1737671273524,0.119153,104000.0,103990.0,0.00014818]
[1737671273734,0.096181,103970.0,103960.0,0.02]
[1737671273934,0.288159,103970.0,103960.0,0.02]
[1737671274572,0.288155,103970.0,103960.0,0.02]
[1737671275187,0.287355,103970.0,103960.0,0.02]
[1737671275808,0.287355,103970.0,103950.0,0.15]
[1737671275809,0.09619,103960.0,103950.0,0.15]
[1737671276015,0.09619,103960.0,103950.0,0.15014867]
[1737671276431,0.09459,103960.0,103950.0,0.02014867]
[1737671277659,0.09139,103960.0,103950.0,0.02014867]
[1737671278123,0.09239,103960.0,103950.0,0.00414867]
[1737671279304,0.09239,103960.0,103950.0,0.00429117]
[1737671279908,0.096218,103930.0,103920.0,0.00029883]
[1737671280472,0.28974729,103950.0,103920.0,0.00029883]
[1737671280678,0.28974729,103950.0,103940.0,0.02]
[1737671280679,0.288605,103950.0,103940.0,0.02]
[1737671280887,0.53549398,103960.0,103940.0,0.17]
[1737671281093,0.0962,103950.0,103940.0,0.17]
[1737671281670,0.1022,103950.0,103940.0,0.16996]
[1737671281931,0.0962,103950.0,103940.0,0.01996]
[1737671282305,0.0992,103950.0,103940.0,0.01996]
[1737671282515,0.003,103950.0,103940.0,0.01996]
[1737671282674,0.005,103950.0,103940.0,0.01996]
[1737671283193,0.003,103950.0,103940.0,0.01996]
[1737671283396,0.005,103950.0,103940.0,0.43351629]
[1737671283781,0.002,103950.0,103940.0,0.43351629]
[1737671283915,0.002,103950.0,103940.0,0.41351629]
[1737671284107,0.002,103950.0,103940.0,0.39355629]
[1737671284700,0.001,103950.0,103940.0,0.41351629]
[1737671285310,0.003,103950.0,103940.0,0.41351629]
[1737671285522,0.003,103950.0,103940.0,0.36351629]
[1737671285724,0.002,103950.0,103940.0,0.36351629]
[1737671286157,0.00029925,104020.0,104000.0,0.06996]
[1737671286422,0.09658345,104020.0,104010.0,0.16996]
[1737671287511,0.09658245,104020.0,104010.0,0.16996]
[1737671287711,0.00144745,104020.0,104010.0,0.16996]
[1737671287914,0.00044745,104020.0,104010.0,0.16996]
[1737671288295,0.29185545,104020.0,104000.0,0.26730729]
[1737671288509,0.48413645,104020.0,104000.0,0.26730729]
[1737671288705,0.48413645,104020.0,104000.0,0.24734729]
[1737671288913,0.29385545,104020.0,104000.0,0.24734729]
[1737671289120,0.48313645,104020.0,104000.0,0.26730729]
[1737671289328,0.28985545,104020.0,104010.0,0.01996]
[1737671290446,0.28985545,104020.0,104000.0,0.26730729]
[1737671290756,0.28885545,104020.0,104010.0,0.01996]
[1737671290971,0.28985545,104020.0,104010.0,0.01996]
[1737671291111,0.00244745,104020.0,104010.0,0.11730729]
[1737671291313,0.09858245,104020.0,104010.0,0.11730729]
[1737671291515,0.10158245,104020.0,104010.0,0.11730729]
[1737671294381,0.00544745,104020.0,104010.0,0.11730729]
[1737671294553,0.00544745,104020.0,104010.0,0.41345129]
[1737671297542,0.10158245,104020.0,104010.0,0.26730729]
[1737671297848,0.10158245,104020.0,104010.0,0.24734729]
[1737671298051,1.596144,104010.0,103990.0,0.01996]
[1737671298279,0.288445,104010.0,103990.0,0.11730729]
[1737671298483,0.288445,104010.0,104000.0,0.01996]
[1737671298682,0.288445,104010.0,104000.0,0.16996]
[1737671298894,0.288445,104010.0,104000.0,0.15]
[1737671299113,0.288445,104010.0,104000.0,0.01996]
[1737671299318,0.289445,104010.0,104000.0,0.01996]
[1737671299543,0.288445,104010.0,104000.0,0.01996]
[1737671300611,0.291445,104010.0,104000.0,0.01996]
[1737671300845,0.195301,104010.0,103990.0,0.17396]
[1737671301058,0.096153,104000.0,103990.0,0.154]
[1737671301270,0.096153,104000.0,103990.0,0.02396]
[1737671301650,0.096153,104000.0,103990.0,0.01996]
[1737671303365,0.288467,104000.0,103980.0,0.266131]
[1737671303528,0.288473,104000.0,103990.0,0.01996]
[1737671303736,0.192314,104000.0,103980.0,0.24734729]
[1737671303917,0.288474,104000.0,103990.0,0.01996]
[1737671304314,0.288467,104000.0,103990.0,0.01996]
[1737671304740,0.290467,104000.0,103990.0,0.01996]
[1737671305353,0.386636,104000.0,103980.0,0.26730729]
[1737671305552,0.290472,104000.0,103990.0,0.01996]
[1737671305957,0.386633,104000.0,103980.0,0.26730729]
[1737671306213,0.480789,104000.0,103980.0,0.26730729]
[1737671306415,0.096163,103990.0,103980.0,0.26730729]
[1737671306696,0.096163,103990.0,103980.0,0.151]
[1737671306903,0.096163,103990.0,103980.0,0.001]
[1737671307258,0.096175,103980.0,103970.0,0.16996]
[1737671307635,1.596175,103980.0,103970.0,0.16996]
[1737671307835,0.096175,103980.0,103960.0,0.2886935]
[1737671308042,0.288528,103980.0,103970.0,0.01996]
[1737671308490,0.289528,103980.0,103970.0,0.02796]
[1737671308700,0.289528,103980.0,103970.0,0.17796]
[1737671308910,0.288528,103980.0,103970.0,0.16996]
[1737671309083,0.289528,103980.0,103970.0,0.16996]
[1737671309286,0.289528,103980.0,103970.0,0.15]
[1737671309609,0.289528,103980.0,103960.0,0.21363879]
[1737671309610,0.096181,103970.0,103960.0,0.0201025]
[1737671310086,0.096181,103970.0,103960.0,0.1501425]
[1737671311019,0.096181,103970.0,103960.0,0.0001425]
[1737671311745,0.120181,103970.0,103960.0,0.0081425]
[1737671312247,0.119181,103970.0,103960.0,0.0011425]
[1737671312782,0.35548829,103970.0,103960.0,0.0011425]
[1737671313035,0.35548829,103970.0,103960.0,0.0001425]
[1737671313281,0.35748829,103970.0,103960.0,0.0001425]
[1737671313797,0.35548829,103970.0,103960.0,0.0001425]
[1737671314050,0.36048829,103970.0,103960.0,0.0001425]
[1737671314311,0.36648829,103970.0,103960.0,0.0011425]
[1737671314568,0.15386,103950.0,103940.0,0.0001425]
[1737671314855,0.27420729,103950.0,103940.0,0.00029035]
[1737671315083,0.32300729,103950.0,103940.0,0.00029035]
[1737671315345,0.26534729,103950.0,103940.0,0.00029035]
[1737671315845,0.34374729,103950.0,103940.0,1e-08]
[1737671316300,0.34674729,103950.0,103940.0,1e-08]
[1737671317236,0.40440729,103950.0,103940.0,1e-08]
[1737671317517,0.40440729,103950.0,103920.0,0.00029883]
[1737671317518,0.119218,103930.0,103920.0,0.00029883]
[1737671317669,0.21656529,103930.0,103920.0,0.00029883]
[1737671318054,0.119218,103930.0,103920.0,0.00029883]
[1737671318892,0.120218,103930.0,103920.0,0.00529883]
[1737671319292,0.120218,103930.0,103920.0,0.00829883]
[1737671320476,0.120218,103930.0,103920.0,0.15829883]
[1737671320860,0.120218,103930.0,103920.0,0.00829883]
[1737671321055,0.12714715,103930.0,103920.0,0.00829883]
[1737671321923,0.10414715,103930.0,103920.0,0.02825883]
[1737671322892,0.00014807,103950.0,103940.0,0.27796]
[1737671323088,0.00014807,103950.0,103940.0,1.46537166]
[1737671323243,0.00014807,103950.0,103940.0,1.51537166]
[1737671323871,0.00314807,103950.0,103940.0,1.51537166]
[1737671324304,0.00314807,103950.0,103940.0,1.46537166]
[1737671324503,0.00014807,103950.0,103940.0,1.47541166]
[1737671324719,0.00014807,103950.0,103940.0,1.46537166]
[1737671324918,0.00114807,103950.0,103940.0,1.52437166]
[1737671325737,0.00114807,103950.0,103940.0,1.53137166]
[1737671326146,0.00114807,103950.0,103940.0,1.53815525]
[1737671326348,0.00114807,103950.0,103940.0,1.34831525]
[1737671326526,0.00114807,103950.0,103940.0,0.42951629]
[1737671326714,0.00114807,103950.0,103940.0,0.44961629]
[1737671326914,0.00114807,103950.0,103940.0,1.41163166]
[1737671327168,0.00114807,103950.0,103940.0,1.41177416]
[1737671328016,0.00114807,103950.0,103940.0,1.46177416]
[1737671328616,7e-08,103950.0,103940.0,1.48477416]
[1737671328820,0.00029925,103970.0,103960.0,0.33615]
[1737671329031,0.00029925,103970.0,103960.0,0.43349729]
[1737671330088,0.00029925,103970.0,103960.0,1.44551266]
[1737671330500,0.00029925,103970.0,103960.0,1.45651266]
[1737671330707,0.00029925,103970.0,103960.0,1.40651266]
[1737671331318,0.00029925,103970.0,103960.0,1.39751266]
[1737671331504,0.00029925,103970.0,103960.0,1.40651266]
[1737671331876,0.00029925,103970.0,103960.0,1.40451266]
[1737671332174,0.00029925,103970.0,103960.0,1.41251266]
[1737671332802,0.00029925,103970.0,103960.0,1.46251266]
[1737671333430,0.00029925,103970.0,103960.0,1.46955833]
[1737671333568,0.00029925,103970.0,103960.0,1.41955833]
[1737671333779,0.00029925,103970.0,103960.0,1.46955833]
[1737671334553,0.00029925,103970.0,103960.0,1.48839834]
[1737671335324,0.00029925,103970.0,103960.0,1.51755008]
[1737671337254,0.00029925,103970.0,103960.0,1.41755008]
[1737671337454,0.00029925,103970.0,103960.0,1.38839834]
[1737671337837,0.00029925,103970.0,103960.0,1.43839834]
[1737671339647,0.00029925,103970.0,103960.0,1.34843834]
[1737671339853,0.00029925,103970.0,103960.0,1.36839834]
[1737671340065,0.00029925,103970.0,103960.0,0.30638297]
[1737671340242,0.00029925,103970.0,103960.0,0.28049729]
[1737671340447,0.00029925,103970.0,103960.0,0.23049729]
[1737671340650,0.00029925,103970.0,103960.0,0.28049729]
[1737671340850,0.00029925,103970.0,103960.0,0.23049729]
[1737671341371,0.00029925,103970.0,103960.0,0.22249729]
[1737671341795,0.00029925,103970.0,103960.0,0.37949729]
[1737671341970,0.00029925,103970.0,103960.0,0.37049729]
[1737671342397,0.09648025,103970.0,103960.0,0.02696]
[1737671342629,0.09648025,103970.0,103960.0,0.007]
[1737671343005,0.09648025,103970.0,103960.0,0.157]
[1737671343238,0.09648025,103970.0,103960.0,0.159]
[1737671343417,0.09648025,103970.0,103960.0,0.15]
[1737671343828,0.09648025,103970.0,103960.0,0.158]
[1737671344178,0.09648025,103970.0,103960.0,0.008]
[1737671344379,0.09648025,103970.0,103960.0,0.01]
[1737671344617,0.09648025,103970.0,103960.0,0.002]
[1737671344822,0.10069925,103970.0,103950.0,0.15]
[1737671345030,0.09619,103960.0,103950.0,0.15]
[1737671345906,0.11919,103960.0,103950.0,0.15]
[1737671346177,0.09619,103960.0,103950.0,0.26616]
[1737671346537,0.46696998,103970.0,103960.0,0.01996]
[1737671346538,0.37078098,103970.0,103960.0,0.01996]
[1737671347776,1.87278098,103970.0,103960.0,0.01996]
[1737671348558,0.18041598,103970.0,103960.0,0.11615]
[1737671348767,0.192308,104000.0,103960.0,0.11615]
[1737671348977,0.00029925,104020.0,104010.0,0.316104]
[1737671349185,0.00044748,104020.0,104010.0,0.41345129]
[1737671349388,0.00044748,104020.0,104010.0,1.37546666]
[1737671350023,0.00044748,104020.0,104010.0,0.41345129]
[1737671350962,0.00244748,104020.0,104010.0,0.41345129]
[1737671353428,0.00235942,104020.0,104010.0,0.41345129]
[1737671354053,1.50235942,104020.0,104010.0,0.41345129]
[1737671354437,1.50235942,104020.0,104010.0,0.36345129]
[1737671354634,0.00235942,104020.0,104010.0,0.34349129]
[1737671354831,0.00235942,104020.0,104010.0,0.36345129]
[1737671355877,0.00035942,104020.0,104010.0,0.36345129]
[1737671356139,0.00035942,104020.0,104010.0,0.42345129]
[1737671361493,0.00035942,104020.0,104010.0,0.44308169]
[1737671362037,0.00035942,104020.0,104010.0,0.51308169]
[1737671362250,4.2e-07,104020.0,104010.0,1.80800298]
[1737671362447,0.00029925,104060.0,104050.0,0.316067]
[1737671362657,0.00079298,104060.0,104050.0,0.41341429]
[1737671365704,0.00079298,104060.0,104050.0,0.42941429]
[1737671365901,0.00079298,104060.0,104050.0,0.22941429]
[1737671366101,0.09689098,104060.0,104050.0,0.20245429]
[1737671366305,0.09689098,104060.0,104050.0,0.22241429]
[1737671366565,0.09689098,104060.0,104050.0,0.27941429]
[1737671366984,0.09689098,104060.0,104050.0,0.42941429]
[1737671367338,0.00079298,104060.0,104050.0,0.42941429]
[1737671367938,0.09689098,104060.0,104050.0,0.37941429]
[1737671368074,0.00079298,104060.0,104050.0,0.37941429]
[1737671368577,0.00079298,104060.0,104050.0,0.282067]
[1737671368785,1.59689098,104060.0,104050.0,0.282067]
[1737671369991,1.67749098,104060.0,104050.0,0.18596]
[1737671370187,1.67749098,104060.0,104050.0,0.282067]
[1737671370608,1.70049098,104060.0,104050.0,0.282067]
[1737671370821,1.70049098,104060.0,104050.0,0.166]
[1737671371577,1.67749098,104060.0,104050.0,0.166]
[1737671371727,0.00049373,104060.0,104050.0,0.159]
[1737671371941,0.04769925,104120.0,104050.0,0.159]
[1737671371942,0.143466,104100.0,104090.0,0.15]
[1737671372579,0.166466,104100.0,104090.0,0.15]
[1737671372785,0.143466,104100.0,104090.0,0.15]
[1737671373213,0.00543004,104110.0,104100.0,0.316021]
[1737671373427,0.00044742,104120.0,104110.0,0.316012]
[1737671373749,0.00044742,104120.0,104110.0,0.41335929]
[1737671375857,0.00144742,104120.0,104110.0,0.41335929]
[1737671376045,0.00044742,104120.0,104110.0,0.41335929]
[1737671376247,0.00044742,104120.0,104110.0,0.42035929]
[1737671376455,0.00044742,104120.0,104110.0,0.42935929]
[1737671379765,0.00044742,104120.0,104110.0,0.37935929]
[1737671379972,0.00044742,104120.0,104110.0,0.42935929]
[1737671380517,0.00044742,104120.0,104110.0,0.37935929]
[1737671380724,0.00044742,104120.0,104110.0,0.42935929]
[1737671381320,0.00044742,104120.0,104110.0,0.44839244]
[1737671381567,0.00044742,104120.0,104110.0,0.39839244]
[1737671381802,1.50044742,104120.0,104110.0,0.44839244]
[1737671382003,1.50044742,104120.0,104110.0,0.39839244]
[1737671382207,1.50044742,104120.0,104110.0,0.44839244]
[1737671382976,1.50044742,104120.0,104110.0,0.20939929]
[1737671383229,0.11949042,104120.0,104110.0,0.016]
[1737671383418,0.11949042,104120.0,104110.0,0.27935929]
[1737671383419,0.00044742,104120.0,104110.0,0.27935929]
[1737671383627,0.00044742,104120.0,104110.0,0.37935929]
[1737671383935,0.00044742,104120.0,104110.0,0.42935929]
[1737671384138,0.00044742,104120.0,104110.0,0.37235929]
[1737671384341,0.00044742,104120.0,104110.0,0.42935929]
[1737671384757,0.00044742,104120.0,104110.0,0.42235929]
[1737671385101,0.00044742,104120.0,104110.0,0.42035929]
[1737671385301,0.00044742,104120.0,104110.0,0.42935929]
[1737671385518,0.00044742,104120.0,104110.0,0.42035929]
[1737671386118,0.00044742,104120.0,104110.0,0.42935929]
[1737671388185,0.00044742,104120.0,104110.0,0.44862029]